fUST/lending_fUST_20250708
["ID","MTS","AMOUNT","RATE_DAILY","PERIOD"]
[370201056,1751913045402,-460.0,0.00020273,2]
[370201057,1751913045411,-460.0,0.00020273,2]
[370201059,1751913045421,-899.29,0.00020273,2]
[370201061,1751913045430,-460.0,0.00020273,2]
[370201063,1751913045439,-460.0,0.00020273,2]
[370201065,1751913045448,-284.990915,0.00020273,2]
[370201068,1751913045459,-460.0,0.00020273,2]
[370201071,1751913045468,-284.990915,0.00020273,2]
[370201074,1751913045477,-151.0,0.00020273,2]
[370201077,1751913045487,-460.0,0.00020273,2]
[370201080,1751913045497,-480.86997316,0.00020273,2]
[370201083,1751913045506,-151.0,0.00020273,2]
[370201086,1751913045516,-941.19,0.00020273,2]
[370201088,1751913045526,-460.0,0.00020273,2]
[370201090,1751913045535,-151.0,0.00020273,2]
[370201092,1751913045545,-460.0,0.00020273,2]
[370201094,1751913045555,-460.0,0.00020273,2]
[370201096,1751913045565,-460.0,0.00020273,2]
[370201098,1751913045574,-3068.15,0.00020273,2]
[370201100,1751913045584,-1220.52,0.00020273,2]
[370201102,1751913045593,-460.0,0.00020273,2]
[370201104,1751913045602,-460.0,0.00020273,2]
[370201106,1751913045611,-460.0,0.00020273,2]
[370201108,1751913045621,-460.0,0.00020273,2]
[370201110,1751913045630,-983.75,0.00020273,2]
[370201112,1751913045640,-348.87,0.00020273,2]
[370201114,1751913045650,-979.24,0.00020273,2]
[370201117,1751913045659,-727.17,0.00020273,2]
[370201120,1751913045669,-460.0,0.00020273,2]
[370201122,1751913045679,-1466.08,0.00020273,2]
[370201124,1751913045688,-366.35731842,0.00020273,2]
[370201126,1751913045698,-460.0,0.00020273,2]
[370201128,1751913045707,-1937.98,0.00020273,2]
[370201130,1751913045717,-460.0,0.00020273,2]
[370201132,1751913045726,-460.0,0.00020273,2]
[370201134,1751913045736,-738.21,0.00020273,2]
[370201136,1751913045746,-467.18209228,0.00020273,2]
[370201138,1751913045755,-942.1,0.00020273,2]
[370201140,1751913045766,-460.0,0.00020273,2]
[370201142,1751913045776,-460.0,0.00020273,2]
[370201144,1751913045786,-485.3,0.00020273,2]
[370201145,1751913045798,-460.0,0.00020273,2]
[370201146,1751913045807,-808.84,0.00020273,2]
[370201147,1751913045816,-151.596433,0.00020273,2]
[370201148,1751913045825,-151.596433,0.00020273,2]
[370201149,1751913045834,-460.0,0.00020273,2]
[370201150,1751913045843,-460.0,0.00020273,2]
[370201152,1751913045853,-460.0,0.00020273,2]
[370201154,1751913045862,-460.0,0.00020273,2]
[370201156,1751913045872,-460.0,0.00020273,2]
[370201158,1751913045881,-460.0,0.00020273,2]
[370201160,1751913045891,-460.0,0.00020273,2]
[370201162,1751913045901,-787.89,0.00020273,2]
[370201165,1751913045911,-359.30738321,0.00020273,2]
[370201167,1751913045921,-1426.34,0.00020273,2]
[370201169,1751913045930,-243.816495,0.00020273,2]
[370201171,1751913045939,-3957.78,0.00020273,2]
[370201173,1751913045949,-460.0,0.00020273,2]
[370201175,1751913045959,-243.816495,0.00020273,2]
[370201177,1751913045969,-1763.27,0.00020273,2]
[370201179,1751913045978,-460.0,0.00020273,2]
[370201181,1751913045987,-151.0,0.00020348,2]
[370201183,1751913045997,-2752.43542433,0.00020348,3]
[370201185,1751913046006,-237.7,0.00020405,4]
[370201187,1751913046016,-151.0,0.00020405,2]
[370201189,1751913046026,-151.0,0.00020405,2]
[370201191,1751913046035,-151.0,0.00020405,2]
[370201193,1751913046044,-151.0,0.00020405,2]
[370201195,1751913046054,-151.0,0.00020405,2]
[370201197,1751913046064,-167.163414,0.00020405,2]
[370201199,1751913046073,-167.163414,0.00020405,2]
[370201201,1751913046082,-151.0,0.00020547,2]
[370201203,1751913046091,-151.0,0.00020547,2]
[370201206,1751913046101,-151.0,0.00020547,2]
[370201208,1751913046110,-151.0,0.00020547,2]
[370201210,1751913046120,-151.0,0.00020547,2]
[370201212,1751913046129,-460.0,0.00020547,2]
[370201214,1751913046138,-429.60078,0.00020547,2]
[370201216,1751913046148,-429.60078,0.00020547,2]
[370201218,1751913046157,-460.0,0.00020547,2]
[370201220,1751913046166,-151.0,0.00020547,2]
[370201222,1751913046175,-151.0,0.00020547,2]
[370201224,1751913046184,-151.0,0.00020547,2]
[370201226,1751913046193,-151.0,0.00020547,2]
[370201228,1751913046205,-151.0,0.00020547,2]
[370201230,1751913046214,-151.0,0.00020547,2]
[370201231,1751913046224,-151.0,0.00020547,2]
[370201234,1751913046233,-151.0,0.00020547,2]
[370201236,1751913046242,-460.0,0.00020547,2]
[370201238,1751913046251,-155.887469,0.00020547,2]
[370201239,1751913046260,-201.773008,0.00020547,2]
[370201242,1751913046270,-155.887469,0.00020547,2]
[370201244,1751913046279,-201.773008,0.00020547,2]
[370201246,1751913046288,-460.0,0.00020547,2]
[370201248,1751913046298,-239.197162,0.00020547,2]
[370201250,1751913046307,-239.197162,0.00020547,2]
[370201252,1751913046316,-680.88,0.00020547,2]
[370201254,1751913046326,-245.119118,0.00020547,2]
[370201256,1751913046335,-968.03,0.00020547,2]
[370201258,1751913046344,-245.119118,0.00020547,2]
[370201260,1751913046353,-463.59,0.00020547,2]
[370201262,1751913046363,-460.0,0.00020547,2]
[370201264,1751913046372,-460.0,0.00020547,2]
[370201266,1751913046381,-899.29,0.00020547,2]
[370201268,1751913046391,-460.0,0.00020547,2]
[370201270,1751913046400,-460.0,0.00020547,2]
[370201272,1751913046409,-244.665713,0.00020547,2]
[370201274,1751913046419,-244.665713,0.00020547,2]
[370201276,1751913046428,-941.19,0.00020547,2]
[370201278,1751913046438,-460.0,0.00020547,2]
[370201280,1751913046449,-460.0,0.00020547,2]
[370201282,1751913046459,-460.0,0.00020547,2]
[370201284,1751913046468,-3068.15,0.00020547,2]
[370201286,1751913046478,-1220.52,0.00020547,2]
[370201288,1751913046487,-460.0,0.00020547,2]
[370201290,1751913046496,-460.0,0.00020547,2]
[370201292,1751913046506,-983.75,0.00020547,2]
[370201294,1751913046515,-979.24,0.00020547,2]
[370201296,1751913046525,-727.17,0.00020547,2]
[370201298,1751913046535,-181.81,0.00020547,2]
[370201300,1751913046544,-1466.08,0.00020547,2]
[370201302,1751913046555,-500.0,0.00020547,14]
[370201304,1751913046564,-460.0,0.00020547,2]
[370201306,1751913046573,-1937.98,0.00020547,2]
[370201308,1751913046582,-460.0,0.00020547,2]
[370201310,1751913046591,-218.74,0.00020547,2]
[370201312,1751913046600,-738.21,0.00020547,2]
[370201314,1751913046610,-942.1,0.00020547,2]
[370201316,1751913046619,-460.0,0.00020547,2]
[370201318,1751913046628,-485.3,0.00020547,2]
[370201320,1751913046638,-151.0,0.00020547,2]
[370201322,1751913046647,-460.0,0.00020547,2]
[370201324,1751913046657,-808.84,0.00020547,2]
[370201327,1751913046667,-460.0,0.00020547,2]
[370201329,1751913046677,-588.79,0.00020547,2]
[370201331,1751913046686,-460.0,0.00020547,2]
[370201333,1751913046696,-460.0,0.00020547,2]
[370201335,1751913046706,-460.0,0.00020547,2]
[370201337,1751913046716,-787.89,0.00020547,2]
[370201339,1751913046725,-1426.34,0.00020547,2]
[370201341,1751913046734,-3957.78,0.00020547,2]
[370201343,1751913046744,-243.816495,0.00020547,2]
[370201345,1751913046753,-460.0,0.00020547,2]
[370201347,1751913046762,-243.816495,0.00020547,2]
[370201349,1751913046773,-1763.27,0.00020547,2]
[370201351,1751913046783,-176.513555,0.00020573,2]
[370201353,1751913046794,-12584.46609586,0.0002059,3]
[370201355,1751913046804,-214.06929976,0.0002059,3]
[370201357,1751913046814,-160.0,0.0002059,3]
[370201359,1751913046824,-2752.43542433,0.0002059,3]
[370201361,1751913046834,-848.27993403,0.0002059,3]
[370201363,1751913046843,-151.0,0.0002059,2]
[370201365,1751913046853,-151.0,0.0002059,2]
[370201367,1751913046864,-151.596433,0.0002059,2]
[370201369,1751913046874,-151.596433,0.0002059,2]
[370201371,1751913046885,-1799.94074061,0.00020607,2]
[370201373,1751913046895,-6767.36302998,0.00020607,2]
[370201375,1751913046904,-690.642,0.00020607,2]
[370201377,1751913046913,-500.0,0.00020607,2]
[370201379,1751913046923,-500.0,0.00020607,2]
[370201381,1751913046932,-151.0,0.00020607,2]
[370201383,1751913046942,-151.0,0.00020607,2]
[370201385,1751913046951,-151.0,0.00020607,2]
[370201387,1751913046962,-25000.0,0.00020607,2]
[370201403,1751913047090,-207.4,0.00020607,2]
[370201405,1751913047100,-1500.0,0.00020607,2]
[370201407,1751913047109,-1296.93837985,0.00020607,2]
[370201409,1751913047118,-151.0,0.00020607,2]
[370201411,1751913047127,-5000.0,0.00020607,2]
[370201413,1751913047136,-151.0,0.00020607,2]
[370201415,1751913047145,-151.0,0.00020607,2]
[370201417,1751913047155,-151.0,0.00020607,2]
[370201419,1751913047164,-284.990915,0.00020607,2]
[370201421,1751913047173,-284.990915,0.00020607,2]
[370201423,1751913047182,-151.0,0.00020607,2]
[370201425,1751913047191,-151.0,0.00020607,2]
[370201427,1751913047200,-247.318958,0.00020607,2]
[370201429,1751913047211,-151.0,0.00020607,2]
[370201431,1751913047220,-151.0,0.00020607,2]
[370201433,1751913047229,-151.0,0.00020607,2]
[370201435,1751913047239,-151.0,0.00020607,2]
[370201437,1751913047249,-151.0,0.00020607,2]
[370201439,1751913047258,-151.0,0.00020607,2]
[370201441,1751913047267,-167.163414,0.00020607,2]
[370201443,1751913047277,-167.163414,0.00020607,2]
[370201445,1751913047286,-243.816495,0.00020607,2]
[370201447,1751913047296,-243.816495,0.00020607,2]
[370201449,1751913047306,-178.056,0.00020647,2]
[370201451,1751913047316,-543.197,0.00020647,2]
[370201453,1751913047325,-716.195754,0.00020662,2]
[370201456,1751913047335,-150.0,0.00020686,30]
[370201458,1751913047345,-1200.89951158,0.00020689,2]
[370201460,1751913047355,-151.0,0.000207,4]
[370201462,1751913047364,-742.6949969,0.00020717,2]
[370201464,1751913047376,-151.0,0.00020728,2]
[370201466,1751913047393,-500.0,0.00020761,2]
[370201468,1751913047402,-500.0,0.00020761,2]
[370201470,1751913047412,-770.17471178,0.00020772,2]
[370201472,1751913047421,-151.0,0.00020821,2]
[370201474,1751913047432,-151.0,0.00020821,2]
[370201476,1751913047441,-151.0,0.00020821,2]
[370201478,1751913047451,-151.0,0.00020821,2]
[370201481,1751913047468,-460.0,0.00020821,2]
[370201483,1751913047483,-429.60078,0.00020821,2]
[370201485,1751913047494,-429.60078,0.00020821,2]
[370201487,1751913047506,-460.0,0.00020821,2]
[370201489,1751913047516,-335.248096,0.00020821,2]
[370201491,1751913047526,-335.248096,0.00020821,2]
[370201493,1751913047536,-151.0,0.00020821,2]
[370201495,1751913047546,-151.0,0.00020821,2]
[370201498,1751913047555,-460.0,0.00020821,2]
[370201500,1751913047565,-155.887469,0.00020821,2]
[370201502,1751913047575,-155.887469,0.00020821,2]
[370201504,1751913047585,-173.18,0.00020821,2]
[370201506,1751913047594,-239.197162,0.00020821,2]
[370201508,1751913047604,-239.197162,0.00020821,2]
[370201510,1751913047613,-680.88,0.00020821,2]
[370201512,1751913047623,-245.119118,0.00020821,2]
[370201514,1751913047633,-968.03,0.00020821,2]
[370201516,1751913047643,-245.119118,0.00020821,2]
[370201518,1751913047653,-463.59,0.00020821,2]
[370201521,1751913047663,-460.0,0.00020821,2]
[370201523,1751913047672,-899.29,0.00020821,2]
[370201525,1751913047681,-460.0,0.00020821,2]
[370201527,1751913047691,-244.665713,0.00020821,2]
[370201529,1751913047701,-244.665713,0.00020821,2]
[370201531,1751913047712,-941.19,0.00020821,2]
[370201533,1751913047722,-460.0,0.00020821,2]
[370201535,1751913047732,-584.95687514,0.00020821,2]
[370201537,1751913047742,-460.0,0.00020821,2]
[370201539,1751913047752,-3068.15,0.00020821,2]
[370201541,1751913047762,-1220.52,0.00020821,2]
[370201543,1751913047772,-983.75,0.00020821,2]
[370201545,1751913047782,-460.0,0.00020821,2]
[370201547,1751913047791,-979.24,0.00020821,2]
[370201549,1751913047805,-727.17,0.00020821,2]
[370201552,1751913047814,-1466.08,0.00020821,2]
[370201553,1751913047824,-460.0,0.00020821,2]
[370201556,1751913047834,-460.0,0.00020821,2]
[370201558,1751913047843,-1937.98,0.00020821,2]
[370201560,1751913047852,-738.21,0.00020821,2]
[370201562,1751913047862,-942.1,0.00020821,2]
[370201564,1751913047871,-485.3,0.00020821,2]
[370201566,1751913047881,-460.0,0.00020821,2]
[370201568,1751913047891,-808.84,0.00020821,2]
[370201570,1751913047901,-399.08876732,0.00020821,2]
[370201572,1751913047911,-460.0,0.00020821,2]
[370201574,1751913047921,-460.0,0.00020821,2]
[370201576,1751913047930,-460.0,0.00020821,2]
[370201578,1751913047939,-1426.34,0.00020821,2]
[370201580,1751913047949,-787.89,0.00020821,2]
[370201582,1751913047960,-3957.78,0.00020821,2]
[370201584,1751913047969,-460.0,0.00020821,2]
[370201586,1751913047978,-1763.27,0.00020821,2]
[370201588,1751913047988,-798.67117612,0.00020827,2]
[370201590,1751913047998,-2752.43542433,0.00020831,4]
[370201592,1751913048008,-237.7,0.00020868,4]
[370201594,1751913048017,-151.0,0.00020874,2]
[370201596,1751913048027,-828.22200964,0.00020882,2]
[370201598,1751913048037,-151.0,0.00020912,2]
[370201600,1751913048046,-858.86622399,0.00020937,2]
[370201602,1751913048056,-890.64427428,0.00020992,2]
[370201604,1751913048066,-151.0,0.00021,4]
[370201606,1751913048076,-150.0,0.00021017,2]
[370201608,1751913048086,-153.0,0.00021041,2]
[370201610,1751913048095,-153.0,0.00021041,2]
[370201612,1751913048105,-151.0,0.00021072,2]
[370201614,1751913048114,-151.0,0.00021072,2]
[370201616,1751913048124,-151.0,0.00021072,2]
[370201618,1751913048133,-201.773008,0.00021072,2]
[370201621,1751913048143,-201.773008,0.00021072,2]
[370201623,1751913048154,-2752.43542433,0.00021072,4]
[370201625,1751913048164,-967.0,0.00021076,2]
[370201627,1751913048173,-403.57,0.00021076,2]
[370201629,1751913048183,-429.128,0.00021076,2]
[370201631,1751913048192,-278.778831,0.00021076,2]
[370201633,1751913048201,-151.0,0.00021076,2]
[370201635,1751913048213,-187.890507,0.00021076,2]
[370201637,1751913048222,-155.0,0.00021089,2]
[370201639,1751913048231,-151.0,0.00021095,2]
[370201641,1751913048241,-460.0,0.00021095,2]
[370201643,1751913048250,-597.28478944,0.00021095,2]
[370201645,1751913048260,-261.495596,0.00021095,2]
[370201647,1751913048270,-460.0,0.00021095,2]
[370201649,1751913048279,-155.887469,0.00021095,2]
[370201651,1751913048288,-155.887469,0.00021095,2]
[370201653,1751913048299,-239.197162,0.00021095,2]
[370201655,1751913048308,-239.197162,0.00021095,2]
[370201657,1751913048318,-680.88,0.00021095,2]
[370201659,1751913048327,-968.03,0.00021095,2]
[370201661,1751913048337,-463.59,0.00021095,2]
[370201663,1751913048347,-460.0,0.00021095,2]
[370201665,1751913048356,-899.29,0.00021095,2]
[370201667,1751913048366,-460.0,0.00021095,2]
[370201669,1751913048375,-244.665713,0.00021095,2]
[370201671,1751913048384,-284.990915,0.00021095,2]
[370201673,1751913048394,-244.665713,0.00021095,2]
[370201675,1751913048403,-284.990915,0.00021095,2]
[370201678,1751913048413,-941.19,0.00021095,2]
[370201680,1751913048423,-460.0,0.00021095,2]
[370201682,1751913048433,-460.0,0.00021095,2]
[370201684,1751913048442,-3068.15,0.00021095,2]
[370201686,1751913048452,-1220.52,0.00021095,2]
[370201688,1751913048463,-151.0,0.00021095,2]
[370201690,1751913048473,-983.75,0.00021095,2]
[370201692,1751913048484,-460.0,0.00021095,2]
[370201694,1751913048493,-151.0,0.00021095,2]
[370201696,1751913048503,-979.24,0.00021095,2]
[370201698,1751913048513,-727.17,0.00021095,2]
[370201700,1751913048523,-151.0,0.00021095,2]
[370201702,1751913048533,-500.0,0.00021095,15]
[370201704,1751913048542,-1466.08,0.00021095,2]
[370201706,1751913048551,-460.0,0.00021095,2]
[370201708,1751913048561,-460.0,0.00021095,2]
[370201710,1751913048570,-1937.98,0.00021095,2]
[370201712,1751913048582,-738.21,0.00021095,2]
[370201714,1751913048591,-942.1,0.00021095,2]
[370201716,1751913048600,-485.3,0.00021095,2]
[370201718,1751913048610,-151.0,0.00021095,2]
[370201720,1751913048620,-460.0,0.00021095,2]
[370201722,1751913048629,-151.0,0.00021095,2]
[370201724,1751913048640,-808.84,0.00021095,2]
[370201726,1751913048649,-151.596433,0.00021095,2]
[370201728,1751913048659,-151.596433,0.00021095,2]
[370201730,1751913048668,-167.163414,0.00021095,2]
[370201732,1751913048677,-167.163414,0.00021095,2]
[370201734,1751913048686,-601.67,0.00021095,2]
[370201736,1751913048696,-460.0,0.00021095,2]
[370201739,1751913048707,-550.74,0.00021095,2]
[370201741,1751913048716,-1426.34,0.00021095,2]
[370201743,1751913048725,-787.89,0.00021095,2]
[370201745,1751913048734,-3957.78,0.00021095,2]
[370201747,1751913048744,-243.816495,0.00021095,2]
[370201749,1751913048753,-460.0,0.00021095,2]
[370201750,1751913048762,-243.816495,0.00021095,2]
[370201752,1751913048774,-1763.27,0.00021095,2]
[370201754,1751913048784,-151.0,0.000211,3]
[370201757,1751913048793,-957.77124259,0.00021102,2]
[370201759,1751913048803,-993.20877856,0.00021157,2]
[370201761,1751913048813,-160.0,0.00021157,3]
[370201762,1751913048823,-151.0,0.00021157,2]
[370201764,1751913048832,-245.119118,0.00021157,2]
[370201767,1751913048842,-245.119118,0.00021157,2]
[370201769,1751913048851,-1029.95750337,0.00021212,2]
[370201771,1751913048860,-1068.065931,0.00021267,2]
[370201773,1751913048870,-1000.0,0.00021309,2]
[370201775,1751913048879,-1000.0,0.00021309,2]
[370201777,1751913048889,-2752.43542433,0.00021314,5]
[370201779,1751913048899,-335.248096,0.00021314,2]
[370201781,1751913048908,-335.248096,0.00021314,2]
[370201783,1751913048918,-1107.58437044,0.00021322,2]
[370201785,1751913048926,-237.7,0.00021331,4]
[370201787,1751913048936,-151.0,0.00021369,2]
[370201789,1751913048946,-152.71345,0.00021369,2]
[370201791,1751913048955,-460.0,0.00021369,2]
[370201793,1751913048965,-429.60078,0.00021369,2]
[370201795,1751913048975,-429.60078,0.00021369,2]
[370201797,1751913048984,-151.0,0.00021369,2]
[370201799,1751913048994,-460.0,0.00021369,2]
[370201801,1751913049004,-201.773008,0.00021369,2]
[370201803,1751913049013,-201.773008,0.00021369,2]
[370201805,1751913049023,-680.88,0.00021369,2]
[370201807,1751913049033,-968.03,0.00021369,2]
[370201809,1751913049043,-463.59,0.00021369,2]
[370201811,1751913049052,-460.0,0.00021369,2]
[370201813,1751913049061,-899.29,0.00021369,2]
[370201815,1751913049071,-460.0,0.00021369,2]
[370201817,1751913049080,-941.19,0.00021369,2]
[370201819,1751913049090,-460.0,0.00021369,2]
[370201821,1751913049100,-460.0,0.00021369,2]
[370201823,1751913049110,-3068.15,0.00021369,2]
[370201825,1751913049120,-1220.52,0.00021369,2]
[370201827,1751913049130,-983.75,0.00021369,2]
[370201829,1751913049139,-460.0,0.00021369,2]
[370201831,1751913049149,-979.24,0.00021369,2]
[370201834,1751913049159,-727.17,0.00021369,2]
[370201836,1751913049169,-1466.08,0.00021369,2]
[370201838,1751913049178,-364.37,0.00021369,2]
[370201840,1751913049187,-460.0,0.00021369,2]
[370201842,1751913049196,-1937.98,0.00021369,2]
[370201844,1751913049207,-738.21,0.00021369,2]
[370201846,1751913049217,-942.1,0.00021369,2]
[370201848,1751913049226,-485.3,0.00021369,2]
[370201850,1751913049236,-460.0,0.00021369,2]
[370201852,1751913049245,-808.84,0.00021369,2]
[370201854,1751913049256,-460.0,0.00021369,2]
[370201856,1751913049266,-1426.34,0.00021369,2]
[370201858,1751913049276,-787.89,0.00021369,2]
[370201860,1751913049286,-3957.78,0.00021369,2]
[370201862,1751913049295,-460.0,0.00021369,2]
[370201864,1751913049305,-1763.27,0.00021369,2]
[370201866,1751913049318,-457.92299215,0.00021377,2]
[370201868,1751913049328,-151.0,0.000214,3]
[370201870,1751913049339,-284.990915,0.00021482,2]
[370201872,1751913049349,-284.990915,0.00021482,2]
[370201874,1751913049359,-1200.89951158,0.00021495,2]
[370201876,1751913049370,-151.0,0.000215,4]
[370201878,1751913049380,-151.0,0.00021555,2]
[370201880,1751913049389,-151.0,0.00021555,2]
[370201882,1751913049400,-2752.43542433,0.00021555,5]
[370201884,1751913049409,-156.4,0.000216,2]
[370201886,1751913049419,-12889.33866,0.00021642,2]
[370201888,1751913049429,-151.0,0.00021643,2]
[370201890,1751913049439,-460.0,0.00021643,2]
[370201892,1751913049449,-151.0,0.00021643,2]
[370201894,1751913049460,-155.887469,0.00021643,2]
[370201896,1751913049470,-460.0,0.00021643,2]
[370201898,1751913049478,-155.887469,0.00021643,2]
[370201900,1751913049487,-239.197162,0.00021643,2]
[370201902,1751913049499,-239.197162,0.00021643,2]
[370201904,1751913049508,-680.88,0.00021643,2]
[370201906,1751913049517,-245.119118,0.00021643,2]
[370201908,1751913049527,-968.03,0.00021643,2]
[370201910,1751913049536,-245.119118,0.00021643,2]
[370201912,1751913049546,-463.59,0.00021643,2]
[370201914,1751913049556,-460.0,0.00021643,2]
[370201917,1751913049565,-899.29,0.00021643,2]
[370201919,1751913049575,-460.0,0.00021643,2]
[370201921,1751913049584,-244.665713,0.00021643,2]
[370201922,1751913049593,-244.665713,0.00021643,2]
[370201925,1751913049603,-941.19,0.00021643,2]
[370201940,1751913049736,-460.0,0.00021643,2]
[370201942,1751913049746,-460.0,0.00021643,2]
[370201944,1751913049756,-3068.15,0.00021643,2]
[370201946,1751913049765,-1220.52,0.00021643,2]
[370201948,1751913049777,-151.0,0.00021643,2]
[370201950,1751913049787,-983.75,0.00021643,2]
[370201952,1751913049796,-460.0,0.00021643,2]
[370201954,1751913049807,-190.247934,0.00021643,2]
[370201956,1751913049817,-979.24,0.00021643,2]
[370201958,1751913049826,-727.17,0.00021643,2]
[370201960,1751913049836,-157.8,0.00021643,16]
[370201962,1751913049845,-1466.08,0.00021643,2]
[370201964,1751913049855,-460.0,0.00021643,2]
[370201965,1751913049864,-1937.98,0.00021643,2]
[370201966,1751913049874,-738.21,0.00021643,2]
[370201967,1751913049884,-1252.83090222,0.00021643,2]
[370201968,1751913049894,-942.1,0.00021643,2]
[370201969,1751913049904,-485.3,0.00021643,2]
[370201970,1751913049912,-151.0,0.00021643,2]
[370201971,1751913049920,-460.0,0.00021643,2]
[370201972,1751913049928,-808.84,0.00021643,2]
[370201973,1751913049937,-151.596433,0.00021643,2]
[370201974,1751913049946,-151.596433,0.00021643,2]
[370201975,1751913049956,-167.163414,0.00021643,2]
[370201976,1751913049965,-167.163414,0.00021643,2]
[370201978,1751913049974,-460.0,0.00021643,2]
[370201980,1751913049984,-1426.34,0.00021643,2]
[370201982,1751913049994,-787.89,0.00021643,2]
[370201984,1751913050003,-3957.78,0.00021643,2]
[370201986,1751913050012,-410.95,0.00021643,2]
[370201988,1751913050021,-243.816495,0.00021643,2]
[370201990,1751913050030,-243.816495,0.00021643,2]
[370201992,1751913050039,-1763.27,0.00021643,2]
[370201994,1751913050048,-151.0,0.00021648,2]
[370201996,1751913050057,-332.0,0.00021669,2]
[370201998,1751913050066,-332.0,0.00021741,2]
[370202000,1751913050076,-332.0,0.00021755,2]
[370202002,1751913050085,-151.0,0.00021762,2]
[370202004,1751913050094,-289.704505,0.00021762,2]
[370202006,1751913050103,-151.0,0.00021769,2]
[370202008,1751913050113,-335.248096,0.00021769,2]
[370202010,1751913050122,-335.248096,0.00021769,2]
[370202012,1751913050131,-50741.33806044,0.0002178,2]
[370202014,1751913050141,-237.7,0.00021795,5]
[370202017,1751913050151,-2752.43542433,0.00021797,6]
[370202019,1751913050160,-151.0,0.000218,4]
[370202020,1751913050169,-151.0,0.000218,3]
[370202022,1751913050179,-1500.0,0.00021857,2]
[370202024,1751913050188,-1500.0,0.00021857,2]
[370202026,1751913050198,-274.8,0.000219,2]
[370202028,1751913050208,-2711.47475557,0.000219,2]
[370202030,1751913050218,-429.60078,0.00021904,2]
[370202032,1751913050227,-429.60078,0.00021904,2]
[370202034,1751913050236,-151.0,0.00021904,2]
[370202037,1751913050246,-201.773008,0.00021904,2]
[370202039,1751913050256,-201.773008,0.00021904,2]
[370202041,1751913050266,-151.0,0.00021917,2]
[370202042,1751913050275,-197.747247,0.00021917,2]
[370202044,1751913050284,-151.0,0.00021917,2]
[370202046,1751913050294,-460.0,0.00021917,2]
[370202048,1751913050304,-335.248096,0.00021917,2]
[370202050,1751913050316,-335.248096,0.00021917,2]
[370202052,1751913050326,-460.0,0.00021917,2]
[370202054,1751913050336,-680.88,0.00021917,2]
[370202056,1751913050345,-968.03,0.00021917,2]
[370202058,1751913050355,-463.59,0.00021917,2]
[370202060,1751913050365,-372.04347776,0.00021917,2]
[370202062,1751913050374,-899.29,0.00021917,2]
[370202064,1751913050383,-460.0,0.00021917,2]
[370202066,1751913050393,-284.990915,0.00021917,2]
[370202068,1751913050403,-284.990915,0.00021917,2]
[370202070,1751913050413,-941.19,0.00021917,2]
[370202072,1751913050423,-460.0,0.00021917,2]
[370202074,1751913050432,-460.0,0.00021917,2]
[370202076,1751913050442,-3068.15,0.00021917,2]
[370202078,1751913050451,-1220.52,0.00021917,2]
[370202081,1751913050461,-983.75,0.00021917,2]
[370202083,1751913050471,-73.87629611,0.00021917,2]
[370202095,1751913050581,-386.12370389,0.00021917,2]